Cogmind - Beta 16 @@@ ROGUE MODE // 2025.11.17 @ 12:43:39 Player: Librarian Ape Result: Destroyed by W4-D2J(j) with Overtuned Pulse Rifle Performance ------------- Evolutions (0) 0 Regions Visited (3) 600 Robots Destroyed (9) 45 Value Destroyed (178) 178 Prototype IDs (8) 160 Alien Tech Used (0) 0 Bonus (771) 771 TOTAL SCORE: 1754 Bonus ------- Registered with UFD 300 Met Optimus in HQ 500 Friendly Fire -29 Cogmind --------- Core Integrity 0/250 Matter 180/300 Energy 290/290 System Corruption 1% Temperature Cool (38) Movement Treading (160) Ox1 Location -9/Scraptown Parts ------- > --- POWER (1) -------- Improved Deuterium Engine > --- PROPULSION (2) --- Overtuned Treads Subdweller Monowheel > --- UTILITY (2) ------ Large Storage Unit Improved Hacking Suite > --- WEAPON (2) ------- Overtuned Coil Gun > --- INVENTORY (15) --- Ion Engine Ballwheel Nuclear Pulse Thruster Matter Compressor (84) Transmission Jammer ECM Suite Improved Propulsion Shielding Light Armor Plating A0-MCA's Component Scanner Minigun Gauss Rifle DM-GVY's Chainsaw Peak State ------------ > --- POWER ------------ Improved Deuterium Engine > --- PROPULSION ------- Overtuned Treads Subdweller Monowheel > --- UTILITY ---------- Large Storage Unit Improved Hacking Suite > --- WEAPON ----------- Overtuned Coil Gun Grenade Launcher > --- INVENTORY -------- Ion Engine Ballwheel Nuclear Pulse Thruster Matter Compressor Transmission Jammer ECM Suite Improved Propulsion Shielding Light Armor Plating A0-MCA's Component Scanner Minigun Gauss Rifle DM-GVY's Chainsaw [Rating: 28] Favorites ----------- Power Ion Engine Engine Ion Engine Propulsion Compact Wheel Treads Overtuned Treads Wheel Compact Wheel Flight Unit Nuclear Pulse Thruster Utility Large Storage Unit Device Seismic Detector Storage Large Storage Unit Hackware Improved Hacking Suite Protection Improved Propulsion Shielding Weapon Grenade Launcher Ballistic Gun Assault Rifle Launcher Grenade Launcher Build | -11 -10 -10 -9 ------- Run | Yrd Mat Sub Scr Slots Evolved . | . . . . Power . | . . . . Propulsion . | . . . . Utility . | . . . . Weapon . | . . . . Parts Attached 22 | 7 2 5 8 Power 3 | 1 . 1 1 Engine 3 | 1 . 1 1 Core . | . . . . Reactor . | . . . . Propulsion 7 | 2 . 3 2 Treads 1 | . . . 1 Leg . | . . . . Wheel 5 | 2 . 3 . Hover . | . . . . Flight 1 | . . . 1 Utility 6 | 2 2 . 2 Device 1 | 1 . . . Storage 3 | 1 2 . . Processor . | . . . . Hackware 1 | . . . 1 Protection 1 | . . . 1 Artifact . | . . . . Weapon 6 | 2 . 1 3 Energy Gun . | . . . . Energy Cannon . | . . . . Ballistic Gun 5 | 2 . . 3 Ballistic Cannon . | . . . . Launcher 1 | . . 1 . Special Weapon . | . . . . Impact Weapon . | . . . . Slashing Weapon . | . . . . Piercing Weapon . | . . . . Special Melee Weapon . | . . . . Unidentified Prototypes . | . . . . Parts Lost 3 | . . 1 2 Power 1 | . . 1 . Propulsion 1 | . . . 1 Utility . | . . . . Weapon 1 | . . . 1 Highest Loss Streak 2 | . . 1 2 To Critical Strikes . | . . . . Average Backups 13 | 3 11 13 13 Power . | . 2 . . Propulsion 3 | 2 3 4 3 Utility 6 | . 3 6 6 Weapon 2 | . 1 1 2 Tool/Special . | . . . . Unused Backups 23 | 2 2 3 16 Power 1 | . . 1 . Propulsion 4 | 2 . . 2 Utility 12 | . 1 1 10 Weapon 5 | . 1 1 3 Tool/Special 1 | . . . 1 Average Slot Usage (%) 99 | . 99 99 99 Engine 13 | . 13 13 14 Wheel 26 | . 28 28 25 Flight 1 | . . . 2 Device 4 | . 14 14 2 Storage 13 | . 14 14 13 Hackware 9 | . . . 11 Ballistic Gun 15 | . 27 14 14 Launcher 12 | . . 13 13 Peak Build Rating 28 | 8 8 10 28 Average Rating 14 | 5 7 8 16 On Entrance 6 | . 8 8 9 Avg Prop Armor Cover (%) 3 | . . . 3 Naked Turns . | . . . . Heaviest Build 38 | 13 28 31 38 Greatest Support 36 | 26 26 32 36 Greatest Overweight (x) 2 | . 1 1 2 Average Overweight (x) . | . . . . Largest Inventory Capacity 15 | 8 15 15 15 Average Capacity 14 | 7 12 15 14 Most Carried 15 | 8 15 15 15 Average Carried 13 | 4 11 14 14 Final Capacity 15 | 8 15 15 15 Final Carried 15 | 8 15 14 15 Class Distribution -------------------- 100% | Mutant Dominant Class ---------------- Mutant | -10/Materials Mutant | -10/Subcaves Mutant | -9/Scraptown Resources | -11 -10 -10 -9 ----------- Run | Yrd Mat Sub Scr Matter Collected 689 | 318 118 66 187 Remotely . | . . . . Salvage Created 344 | 133 105 106 . Parts 26 | 12 6 8 . Haulers Intercepted 2 | . 2 . . Recyclers Shooed 1 | 1 . . . Parts Field Recycled . | . . . . Retrieved Matter . | . . . . Parts Self-Destructed 1 | . . 1 . Prevented . | . . . . Parts Restored . | . . . . Kills | -11 -10 -10 -9 ------- Run | Yrd Mat Sub Scr Combat Hostiles Destroyed 4 | . . 4 . Guns 1 | . . 1 . AOE 3 | . . 3 . Classes Destroyed 5 | 2 1 2 . Tunneler 2 | 2 . . . Hauler 2 | . 2 . . Recycler 1 | 1 . . . Grunt 1 | . . 1 . Subdweller 3 | . . 3 . Best Kill Streak 3 | 3 1 3 . Combat Bots Only 3 | . . 3 . Max Kills in Single Turn 1 | 1 1 1 . Gunslinging . | . . . . Exploded 1 | . . 1 . Melee . | . . . . Uniques/NPCs Destroyed . | . . . . Combat | -11 -10 -10 -9 -------- Run | Yrd Mat Sub Scr Hostile Shots Fired 43 | . 1 10 32 Missed 10 | . . 3 7 Hits 33 | . 1 7 25 Projectile 33 | . 1 7 25 Damage Taken 760 | . 46 258 456 Core 253 | . 20 80 153 Absorbed by Shields . | . . . . Regen/Repaired (Parts) 209 | . . . 209 Core Remaining (%) 100 | 100 . . . Volleys Fired 34 | 8 13 8 5 Largest 2 | 2 2 2 1 Hottest 50 | 40 40 50 32 Shots Fired 62 | 16 26 16 4 Gun 50 | 16 26 8 . Cannon . | . . . . Launcher 12 | . . 8 4 Special . | . . . . Kinetic 50 | 16 26 8 . Thermal . | . . . . Explosive 12 | . . 8 4 Electromagnetic . | . . . . Robot Hit Streak 7 | 5 5 7 . Robot Miss Streak 6 | 1 6 1 . Penetration Max . | . . . . Secondary Targets . | . . . . Shots Hit Robots 34 | 11 12 11 . Core Hits 15 | 4 4 7 . Critical Kills . | . . . . Critical Parts Destroyed . | . . . . Critical Strikes . | . . . . Melee Attacks . | . . . . Impact . | . . . . Slashing . | . . . . Piercing . | . . . . Sneak Attacks . | . . . . Combat Hostiles . | . . . . Follow-up Attacks . | . . . . Damage Inflicted 700 | 143 166 391 . Guns 392 | 143 166 83 . Cannons . | . . . . Explosions 308 | . . 308 . Melee . | . . . . Ramming . | . . . . Kinetic 392 | 143 166 83 . Thermal . | . . . . Explosive 308 | . . 308 . Electromagnetic . | . . . . Impact . | . . . . Slashing . | . . . . Piercing . | . . . . Highest Corruption 1 | . . . 1 Average Corruption 1 | . . . 1 Corruption Purged . | . . . . Corruption Blocked . | . . . . Overload Shots . | . . . . Overflow Damage 15 | . . . 15 Projectiles . | . . . . Explosions 15 | . . . 15 Melee . | . . . . Knockbacks . | . . . . Impact . | . . . . Kinetic . | . . . . Secondary . | . . . . Self-Inflicted Damage 222 | . . 99 123 Shots 8 | . . 4 4 Rammed . | . . . . Targets Rammed . | . . . . Kicked . | . . . . Crushed . | . . . . Highest Temperature 14 | 6 12 . 14 Average Temperature 7 | 6 8 . 7 Received Heat Transfer 240 | . 12 30 198 Siege Activations . | . . . . Martial Activations . | . . . . Shielding Activations . | . . . . Robots Disrupted . | . . . . Combat Hostiles . | . . . . Robots Corrupted . | . . . . Combat Hostiles . | . . . . Parts Fried . | . . . . Impact Corruptions . | . . . . Robots Melted . | . . . . Combat Hostiles . | . . . . Parts Melted . | . . . . Heat Transferred . | . . . . Parts Sabotaged . | . . . . Parts Stolen . | . . . . Parts Stripped . | . . . . Power Chain Reactions . | . . . . Alert | -11 -10 -10 -9 ------- Run | Yrd Mat Sub Scr Maximum Alert Level . | . . . . Low Security (%) 100 | 100 100 . . Level 1 . | . . . . Level 2 . | . . . . Level 3 . | . . . . Level 4 . | . . . . Level 5 . | . . . . High Security . | . . . . Max Security . | . . . . Peak Influence 10 | 10 7 . . Initial . | . . . . Average . | 1 . . . Influence Increases 60 | 15 25 20 . Destroy 0b10 Robot/C 20 | . . 20 . Destroy 0b10 Robot/NC 25 | 15 10 . . Destroy Leader 4 | . 4 . . Successful Hack 10 | . 10 . . Destroy Structure 1 | . 1 . . Influence Decreases 60 | 15 25 20 . Time Decay 60 | 15 25 20 . Squads Dispatched . | . . . . Investigation . | . . . . Extermination . | . . . . Reinforcement . | . . . . Assault . | . . . . Garrison . | . . . . Intercept . | . . . . Searches Triggered . | . . . . Construction Impeded . | . . . . Haulers Reinforced . | . . . . Active Scanning Responses . | . . . . Cargo Convoy Interrupts . | . . . . Stealth | -11 -10 -10 -9 --------- Run | Yrd Mat Sub Scr Distress Signals 1 | . 1 . . Communications Jammed . | . . . . Distress Signals . | . . . . Times Spotted 19 | . 6 5 8 Peak Tracking Total 8 | . 3 2 8 Tactical Retreats . | . . . . Traps | -11 -10 -10 -9 ------- Run | Yrd Mat Sub Scr Traps Triggered 3 | . 2 1 . Indirectly . | . . . . Trap Hack Attempts . | . . . . Triggered . | . . . . Disarmed . | . . . . Reprogrammed . | . . . . Reused . | . . . . Traps Extracted . | . . . . Installed . | . . . . Triggered . | . . . . Machines | -11 -10 -10 -9 ---------- Run | Yrd Mat Sub Scr Machines Disabled 3 | . . . 3 Max in Single Turn 2 | . . . 2 Machines Repaired . | . . . . Machines Dismantled . | . . . . Machines Sabotaged . | . . . . Overloaded Fab Kills . | . . . . Hacking | -11 -10 -10 -9 --------- Run | Yrd Mat Sub Scr Machines Accessed 14 | . 6 . 8 Terminals 6 | . 6 . . Fabricators . | . . . . Repair Stations . | . . . . Recycling Units . | . . . . Scanalyzers . | . . . . Garrison Access . | . . . . Total Hacks 51 | . 17 . 34 Successful 41 | . 7 . 34 Failed 10 | . 10 . . Catastrophic 1 | . 1 . . Database Lockouts . | . . . . Manual 17 | . 17 . . Terminals 17 | . 17 . . Fabricators . | . . . . Repair Stations . | . . . . Recycling Units . | . . . . Scanalyzers . | . . . . Garrison Access . | . . . . Terminal Hacks 34 | . . . 34 Record 33 | . . . 33 Proto ID Catalog 1 | . . . 1 Fabricator Hacks . | . . . . Repair Station Hacks . | . . . . Recycling Unit Hacks . | . . . . Scanalyzer . | . . . . Garrison Access Hacks . | . . . . Unauthorized Hacks 7 | . 7 . . Terminals 7 | . 7 . . Botnet 1 | . 1 . . Operators 1 | . 1 . . Skim 5 | . 5 . . Fabricators . | . . . . Repair Stations . | . . . . Recycling Units . | . . . . Scanalyzers . | . . . . Garrison Access . | . . . . Data Cores Recovered . | . . . . Used . | . . . . Hacking Detections 5 | . 5 . . Full Trace Events . | . . . . Feedback Events . | . . . . Feedback Blocked . | . . . . Robot Schematics Acquired . | . . . . Robots Built . | . . . . Authchips . | . . . . Time . | . . . . Total Robot Build Rating . | . . . . Part Schematics Acquired . | . . . . Parts Built . | . . . . Authchips . | . . . . Time . | . . . . Total Part Build Rating . | . . . . Part Studies Acquired . | . . . . Parts Repaired . | . . . . Time . | . . . . Parts Recycled . | . . . . Recycled Matter . | . . . . Retrieved Matter . | . . . . Retrieved Components . | . . . . Parts Scanalyzed . | . . . . Part Schematics Acquired . | . . . . Parts Damaged . | . . . . Bothacking | -11 -10 -10 -9 ------------ Run | Yrd Mat Sub Scr Used RIF Installer . | . . . . Robots Hacked . | . . . . Non-combat . | . . . . Combat . | . . . . Robot Hacks Applied . | . . . . Relay Couplers Released . | . . . . Fabnet Peak Effective % . | . . . . Robots Rewired . | . . . . Allies Hacked . | . . . . Hacks Repelled . | . . . . Allies | -11 -10 -10 -9 -------- Run | Yrd Mat Sub Scr Total Allies . | . . . . Largest Group . | . . . . Highest-Rated Group . | . . . . Highest-Rated Ally . | . . . . Total Orders . | . . . . Ally Attacks . | . . . . Total Damage . | . . . . Kills . | . . . . Allies Corrupted . | . . . . Allies Melted . | . . . . Intel | -11 -10 -10 -9 ------- Run | Yrd Mat Sub Scr Active Infowar (turns) 1048 | 17 353 307 371 Seismic 1048 | 17 353 307 371 Robot Analysis Total . | . . . . Derelict Logs Recovered 4 | . . 1 3 Drone Launches . | . . . . Drone Recoveries . | . . . . Exploration | -11 -10 -10 -9 ------------- Run | Yrd Mat Sub Scr Turns Passed 3149 | 97 353 307 2392 Spaces Moved 2546 | 59 293 268 1926 Core 8 | 8 . . . Treads 2 | . . . 2 Legs . | . . . . Wheels 2536 | 51 293 268 1924 Hover . | . . . . Flight . | . . . . Fastest Speed 50 | 50 90 95 100 Average Speed 102 | 86 98 100 103 Slowest Speed 180 | 100 105 105 180 Overloaded Moves . | . . . . Propulsion Burnouts . | . . . . Robots Hopped . | . . . . Potential Cave-ins 3 | . . . 3 Cave-ins Triggered . | . . . . Exploration Rate (%) 42 | 5 58 18 89 Regions Visited 3 Branch Regions 2 Pre-discovered Areas 1 | . . 1 . Known Exits Taken . | . . . . Unknown Exits Taken 3 | 1 1 1 . Scrap Searched 8 | . . 3 5 Spaces Dug 29 | . . 12 17 Terrain Destroyed 95 | . . 64 31 Melee . | . . . . Projectile . | . . . . AOE 95 | . . 64 31 Terrain Rammed . | . . . . Walls Destroyed . | . . . . Machines Disabled . | . . . . Actions | -11 -10 -10 -9 --------- Run | Yrd Mat Sub Scr Total 3028 | 86 331 290 2321 Wait 352 | 1 9 . 342 Move 2543 | 58 292 267 1926 Hop . | . . . . Pick Up 45 | 10 9 4 22 Fast Attach 10 | 7 2 . 1 Attach 1 | . . 1 . Detach . | . . . . Swap 16 | . 2 4 10 Drop 27 | 2 4 6 15 Fire 34 | 8 13 8 5 Melee . | . . . . Ram . | . . . . Kick . | . . . . Crush . | . . . . Escape Stasis . | . . . . Rewire . | . . . . Trap . | . . . . Miscellaneous . | . . . . Route ------- -11/Scrapyard -10/Materials (discovered 3 exits: [*Mat] / [*Min] / [*Sub]) -10/Subcaves -9/Scraptown (discovered 2 exits: [*Fac x2]) History --------- Turn | Location | Event 4 | -11/Scrapyard | Discovered new exit (range 14) 98 | -11/Scrapyard | Entered Materials 99 | -10/Materials | Met a group of wandering Federalists 265 | -10/Materials | Discovered new exit (range 6) 313 | -10/Materials | Build established: Mutant 404 | -10/Materials | Discovered new exit (range 6) 449 | -10/Materials | Discovered new exit (range 3) 451 | -10/Materials | Entered Subcaves 452 | -10/Subcaves | Continued accompanying wandering Federalists (4) 452 | -10/Subcaves | Approached by a straggling Scientist 455 | -10/Subcaves | Learned location of Zion (-6) 559 | -10/Subcaves | Scientist uncovered a shortcut to Scraptown 568 | -10/Subcaves | Shifting Twisted Machinery released Flamer 577 | -10/Subcaves | Shifting Twisted Machinery released Flamer 616 | -10/Subcaves | Ambushed by Subdweller buried in earth 619 | -10/Subcaves | Ambushed by Subdweller buried in earth 758 | -10/Subcaves | Entered Scraptown 902 | -9/Scraptown | Visited CR-KLE's Repair Center 910 | -9/Scraptown | Visited SPCMW 943 | -9/Scraptown | Scanned Subdweller tech in exchange for log data 945 | -9/Scraptown | Learned Research emergency access door positions 946 | -9/Scraptown | Learned Factory garrison access intel 959 | -9/Scraptown | Discovered new exit (range 11) 1067 | -9/Scraptown | Visited Cyclists 1086 | -9/Scraptown | Visited Shadow of the Wyrm 1239 | -9/Scraptown | Visited Red Mages 1281 | -9/Scraptown | Visited Observation Area 1291 | -9/Scraptown | Visited TADAMA 1544 | -9/Scraptown | Visited UFD Registry 1544 | -9/Scraptown | Registered with UFD as "Metahead" 1576 | -9/Scraptown | Entered Cyclist Reading Room 1643 | -9/Scraptown | Visited Modified Component R&D 1705 | -9/Scraptown | Visited LU-1G1's Boring Crew 1814 | -9/Scraptown | Discovered new exit (range 5) 1845 | -9/Scraptown | Visited Curators Association 1899 | -9/Scraptown | Visited Abandonware Association 1925 | -9/Scraptown | Learned abandonware demo "ERRANTS.EXE" 1925 | -9/Scraptown | Learned abandonware demo "REVENGE.EXE" 1948 | -9/Scraptown | Visited A0-MCA Data Center 1962 | -9/Scraptown | Visited Science Guys 2288 | -9/Scraptown | CR-KLE repaired 5 parts 2474 | -9/Scraptown | Visited Derelict Rescue Squad 2662 | -9/Scraptown | Given a C+ rating by A0-MCA 2664 | -9/Scraptown | Found A0-MCA's Component Scanner 2712 | -9/Scraptown | Met Optimus 2712 | -9/Scraptown | Accepted into 0bPrime 3112 | -9/Scraptown | Civil war broke out across Scraptown 3121 | -9/Scraptown | Found Prototype Wheel 3134 | -9/Scraptown | Found DM-GVY's Chainsaw 3142 | -9/Scraptown | Core integrity fell below 50% 3150 | -9/Scraptown | Core integrity fell below 20% 3150 | -9/Scraptown | Destroyed by W4-D2J(j) with Overtuned Pulse Rifle Last Messages --------------- 03129_ The unstable cave ceiling collapses. 03129_ AW-251(g) destroyed. 03129_ W5-F1P(j) destroyed. 03129_ Slug penetrates BW-2KZ(j). 03131_ Bolt penetrates KG-G9T(E). 03132_ Ovr. Coil Gun recovered from malfunction. 03134_ The unstable cave ceiling collapses. 03134_ Dropped Imp. Terrain Scanner. 03134_ Acquired DM-GVY's Chainsaw. 03137_ 6L-7FA(E) destroyed. 03137_ SR-C6F(j) suffers critical hit (Burn). 03140_ SR-C6F(j) destroyed. 03140_ Dropped Ovr. Barrage Gun. 03141_ IE-8O4(j) heat damages Ovr. Titanium Leg. 03142_ The unstable cave ceiling collapses. 03142_ Acquired Gauss Rifle. 03145_ Acquired Ovr. Treads. 03146_ SJ-7U3(p) suffers critical hit (Burn). 03146_ SJ-7U3(p) destroyed. 03147_ Grenade Launcher destroyed. Map ----- +----------------------------------------------------+ | | | | | | | | | | | | | | | | | | | ?????????????????????????????????????????????????? | | ?????????????????????????????????????????????????? | | ?????????????????????????????????????????????????? | | ?????????????????????????????????????????????????? | | ?????????????????????????????????????????????????? | | ?????????????????????????????????????????????????? | | ?????????????????????????????????????????????????? | | ?????????????????????????????????????????????????? | | ?????????????????????????????????????????????????? | | ?????????????????????????????????????????????????? | | ?????????????????????????????????????????????????? | | ???????????????????????#####?????????????????????? | | ???????????????????????#"""#?????????????????????? | | ###########???####?????#"="#?????????????????????? | | ##""|##"""#??## ##?####%<[#?????????????????????? | | ##""|##!!"#### ###[%%g%j##????????????????????? | | !===!%=@j%#????????????????????? | | [*!!=%=%!*#????????????????????? | | ############## ![![!*!####????????????????????? | | ?????????????#; =![[###???????????????????????? | | ?????????????## !!#####??????????????????????? | | ??????????????# = !#"#??????????????????????? | | ??????????????# # " " ####???????????????????? | | ????########### """ "#???????????????????? | | ????? ## [== ""##???????????????????? | | ???#? ## !" = "=#????????????????????? | | ???? ? ?# ##"" ""##???????????????????? | | #??? ## #" "#???????????????????? | | #???? ## ##"" ""##???????????????????? | | #????? ?# ##&" ] "$#????????????????????? | | #?????? ??# ##"" ""##???????????????????? | | ???????? ???# #" "#???????????????????? | | ????????# #???# ## ###"######???????????????????? | | ######### ##### ## ##?#####?????????????????????? | | """"""""" """"" "" "#??? ??????????????????????? | | "#?? "??????????????????????? | | "#?? ""???#?????????????????? | | "#?" "" #?????????????????? | | "##" " ??????????????????? | | " ""???????????????????? | | """"""""""""""" "##" ""???????????????????? | +----------------------------------------------------+ Best States ------------- Heat Dissipation 25 Energy Generation 16 Energy Capacity 290 Matter Stores 300 Matter Capacity 300 Sight Range 16 Terrain Scan Density 10 Propulsion Shielding 66 Evasion (%) 42 Recoil Reduction 1 Offensive Hacking 12 Item Schematics ----------------- None Robot Schematics ------------------ None Fabricated ------------ Nothing Repaired ---------- Nothing Studied --------- None Alien Tech Used ----------------- None Achievements -------------- Bob, First Of His Name Nice Directions, Buddy root@ Challenges ------------ None Game ------ Seed DeuteriumBottomlessTerrabomb Manual? 0 Play Time 00:50:43 Cumulative 47.2 hours Start 2025.11.17 @ 11:45:23 End 2025.11.17 @ 12:43:39 Sessions 1 Manual Loads 0 Difficulty Rogue Special Mode None Game No. 69 Rogue 69 Adventurer 0 Explorer 0 Win Type - Total 1 Types 1/0/0/0/0/0/0/0/0/0 Lore% 37 Gallery% 30 Achievement% 28 Wizard Run 0 Options --------- Layout 0 ASCII 0 Keyboard 0 Movement Mouse Keybinds 0 Fullscreen 2 Font 24/Crisp Map View 76x50 Zoom Use 0% Tactical HUD 1 Map Filters NONE Filters NONE Steam 1 RUN: 0a19563e-7a17-4de6-b1ff-f43e3bfc50d5